[Event "*** Titled Tuesday Blitz"]
[Site "Chess.com"]
[Date "2018.04.03"]
[Round "6"]
[White "Mikhail_Golubev"]
[Black "Cecile-Haussernot"]
[Result "1-0"]
[WhiteElo "2277"]
[BlackElo "2293"]
[TimeControl "180+2"]
[EndTime "14:20:07 PDT"]
[Termination "Mikhail_Golubev won on time"]

1. e4 {[%clk 0:03:01.9]} 1... c5 {[%clk 0:03:00.1]} 2. Nf3 {[%clk 0:03:01.6]}
2... d6 {[%clk 0:03:00.2]} 3. d4 {[%clk 0:03:02]} 3... cxd4 {[%clk 0:03:00.7]}
4. Nxd4 {[%clk 0:03:02.6]} 4... Nf6 {[%clk 0:03:01.9]} 5. Nc3 {[%clk 0:03:02.7]}
5... a6 {[%clk 0:03:02.5]} 6. Bc4 {[%clk 0:03:01.7]} 6... e6 {[%clk 0:03:02.2]}
7. Bb3 {[%clk 0:03:01.9]} 7... Nbd7 {[%clk 0:02:55.1]} 8. O-O {[%clk 0:03:01.3]}
8... Nc5 {[%clk 0:02:50.6]} 9. f4 {[%clk 0:03:00.6]} 9... Qc7 {[%clk 0:02:49.7]}
10. Qe2 {[%clk 0:02:55.7]} 10... Be7 {[%clk 0:02:15.1]} 11. e5 {[%clk 0:02:55]}
11... dxe5 {[%clk 0:02:15.4]} 12. fxe5 {[%clk 0:02:55]} 12... Nfd7 {[%clk
0:02:15.8]} 13. Bf4 {[%clk 0:02:38.8]} 13... O-O {[%clk 0:02:05.9]} 14. Rad1
{[%clk 0:02:31.9]} 14... b5 {[%clk 0:02:02.9]} 15. Nf5 {[%clk 0:02:16.5]} 15...
exf5 {[%clk 0:01:57.8]} 16. e6 {[%clk 0:02:17.3]} 16... Qb6 {[%clk 0:01:53.2]}
17. Nd5 {[%clk 0:01:59.2]} 17... Qa7 {[%clk 0:01:25.3]} 18. Nxe7+ {[%clk
0:01:48.9]} 18... Kh8 {[%clk 0:01:26.4]} 19. exd7 {[%clk 0:01:44.1]} 19... Bxd7
{[%clk 0:01:27.1]} 20. Be3 {[%clk 0:01:38.7]} 20... Qc7 {[%clk 0:01:22.6]} 21.
Nd5 {[%clk 0:01:32.1]} 21... Qe5 {[%clk 0:01:20.8]} 22. Nb6 {[%clk 0:01:15.5]}
22... Rae8 {[%clk 0:01:15.7]} 23. Nxd7 {[%clk 0:01:15.7]} 23... Nxd7 {[%clk
0:01:16.4]} 24. Rxd7 {[%clk 0:01:15.6]} 24... f4 {[%clk 0:01:17.3]} 25. Rxf7
{[%clk 0:01:07.2]} 25... Rxf7 {[%clk 0:01:09.9]} 26. Bxf7 {[%clk 0:01:06.4]}
26... Re7 {[%clk 0:01:10.8]} 27. Rd1 {[%clk 0:01:00.1]} 27... g6 {[%clk
0:00:59.6]} 28. Bb3 {[%clk 0:00:34]} 28... fxe3 {[%clk 0:00:44.2]} 29. Rf1
{[%clk 0:00:27.1]} 29... Re8 {[%clk 0:00:40.5]} 30. Rf3 {[%clk 0:00:27.3]} 30...
Qd4 {[%clk 0:00:40.2]} 31. c3 {[%clk 0:00:26.4]} 31... Qe4 {[%clk 0:00:36.6]}
32. Bc2 {[%clk 0:00:24.9]} 32... Qe5 {[%clk 0:00:36.4]} 33. Bd3 {[%clk 0:00:24]}
33... Qc5 {[%clk 0:00:33.1]} 34. Kh1 {[%clk 0:00:23.3]} 34... Qe5 {[%clk
0:00:33.3]} 35. Qe1 {[%clk 0:00:21.2]} 35... Qc5 {[%clk 0:00:31.2]} 36. Be2
{[%clk 0:00:21.4]} 36... Qd6 {[%clk 0:00:32.1]} 37. Qf1 {[%clk 0:00:21.8]} 37...
Qc5 {[%clk 0:00:24.4]} 38. h3 {[%clk 0:00:21.7]} 38... Qd6 {[%clk 0:00:25.7]}
39. Kg1 {[%clk 0:00:21.4]} 39... Qc5 {[%clk 0:00:26.7]} 40. Kh1 {[%clk
0:00:22.5]} 40... Qd6 {[%clk 0:00:28.1]} 41. Rf7 {[%clk 0:00:23]} 41... Re6
{[%clk 0:00:23]} 42. Rf8+ {[%clk 0:00:22.1]} 42... Kg7 {[%clk 0:00:24.2]} 43.
Qf7+ {[%clk 0:00:22.6]} 43... Kh6 {[%clk 0:00:25.7]} 44. Qf4+ {[%clk 0:00:22.6]}
44... g5 {[%clk 0:00:25.1]} 45. Qxd6 {[%clk 0:00:22.2]} 45... Rxd6 {[%clk
0:00:26.6]} 46. Re8 {[%clk 0:00:21.8]} 46... Rd2 {[%clk 0:00:28.2]} 47. Rxe3
{[%clk 0:00:22]} 47... Rxb2 {[%clk 0:00:28.8]} 48. Bd3 {[%clk 0:00:22.8]} 48...
Rxa2 {[%clk 0:00:29.3]} 49. Re7 {[%clk 0:00:23.5]} 49... g4 {[%clk 0:00:30]} 50.
h4 {[%clk 0:00:24.4]} 50... Ra1+ {[%clk 0:00:19.7]} 51. Kh2 {[%clk 0:00:24.1]}
51... g3+ {[%clk 0:00:20.9]} 52. Kxg3 {[%clk 0:00:24.1]} 1-0

[Event "*** Titled Tuesday Blitz"]
[Site "Chess.com"]
[Date "2018.04.03"]
[Round "6"]
[White "OparinGrigoriy"]
[Black "FMJoseHerrera"]
[Result "1-0"]
[WhiteElo "2826"]
[BlackElo "2491"]
[TimeControl "180+2"]
[EndTime "14:20:33 PDT"]
[Termination "OparinGrigoriy won by resignation"]

1. e4 {[%clk 0:03:01.9]} 1... c5 {[%clk 0:03:00.2]} 2. Nf3 {[%clk 0:03:03.3]}
2... e6 {[%clk 0:03:01.1]} 3. Nc3 {[%clk 0:03:05.2]} 3... a6 {[%clk 0:03:02.1]}
4. d4 {[%clk 0:03:06.4]} 4... cxd4 {[%clk 0:03:04]} 5. Nxd4 {[%clk 0:03:08.3]}
5... Qc7 {[%clk 0:03:05.5]} 6. Be3 {[%clk 0:03:09.5]} 6... b5 {[%clk 0:03:06.8]}
7. Qf3 {[%clk 0:03:07]} 7... Bb7 {[%clk 0:03:07.4]} 8. a3 {[%clk 0:03:07.9]}
8... Nf6 {[%clk 0:03:07.5]} 9. Bd3 {[%clk 0:03:06.5]} 9... d6 {[%clk 0:03:04.2]}
10. Qg3 {[%clk 0:03:05.3]} 10... Nbd7 {[%clk 0:03:04]} 11. f3 {[%clk 0:03:05.9]}
11... Ne5 {[%clk 0:03:02.9]} 12. O-O {[%clk 0:03:06.1]} 12... h5 {[%clk
0:03:03.7]} 13. Qf2 {[%clk 0:03:06.7]} 13... h4 {[%clk 0:03:04.4]} 14. h3 {[%clk
0:02:59.9]} 14... Be7 {[%clk 0:03:02.9]} 15. f4 {[%clk 0:03:00]} 15... Nc4
{[%clk 0:03:03.8]} 16. Bc1 {[%clk 0:02:57.1]} 16... Nh5 {[%clk 0:02:58.7]} 17.
Nce2 {[%clk 0:02:47.2]} 17... d5 {[%clk 0:02:55.9]} 18. e5 {[%clk 0:02:40.1]}
18... Bc5 {[%clk 0:02:39.7]} 19. b3 {[%clk 0:02:40.5]} 19... Ng3 {[%clk
0:02:33.9]} 20. Rd1 {[%clk 0:02:30.6]} 20... Nb6 {[%clk 0:01:30.8]} 21. Nxg3
{[%clk 0:02:29.1]} 21... hxg3 {[%clk 0:01:32.7]} 22. Qe3 {[%clk 0:02:30.5]}
22... g6 {[%clk 0:01:28.8]} 23. b4 {[%clk 0:02:28.3]} 23... Be7 {[%clk
0:01:29.4]} 24. Qxg3 {[%clk 0:02:25.3]} 24... Nc4 {[%clk 0:01:14.1]} 25. Qf2
{[%clk 0:02:20.7]} 25... Bh4 {[%clk 0:01:12.8]} 26. Qe2 {[%clk 0:02:20.8]} 26...
Qb6 {[%clk 0:01:12.7]} 27. c3 {[%clk 0:02:22.1]} 27... Rc8 {[%clk 0:01:11.3]}
28. a4 {[%clk 0:02:23.2]} 28... a5 {[%clk 0:01:06.7]} 29. bxa5 {[%clk
0:02:07.5]} 29... Qxa5 {[%clk 0:00:56.2]} 30. Nxb5 {[%clk 0:02:08.4]} 30... Kf8
{[%clk 0:00:52.2]} 31. Kh2 {[%clk 0:02:05.2]} 31... Kg7 {[%clk 0:00:51.5]} 32.
Qg4 {[%clk 0:01:55.4]} 32... Be7 {[%clk 0:00:49.7]} 33. Bxc4 {[%clk 0:01:38.1]}
33... Rxc4 {[%clk 0:00:50.2]} 34. Nd6 {[%clk 0:01:39.6]} 34... Rh4 {[%clk
0:00:34.7]} 35. Qe2 {[%clk 0:01:28.6]} 35... Rc7 {[%clk 0:00:21.4]} 36. Bd2
{[%clk 0:01:28.8]} 36... Ba6 {[%clk 0:00:19]} 37. c4 {[%clk 0:01:26.8]} 37...
Qc5 {[%clk 0:00:20.3]} 38. Nb5 {[%clk 0:01:20.1]} 38... Rc8 {[%clk 0:00:19]} 39.
cxd5 {[%clk 0:01:19.4]} 39... Qxd5 {[%clk 0:00:20.4]} 40. Be1 {[%clk 0:01:20.3]}
40... Qb3 {[%clk 0:00:11.2]} 41. Bxh4 {[%clk 0:01:00.8]} 41... Bxh4 {[%clk
0:00:13.1]} 42. Qg4 {[%clk 0:01:02.2]} 42... Be7 {[%clk 0:00:11.4]} 43. Nd6
{[%clk 0:01:00.5]} 43... Rc2 {[%clk 0:00:12]} 44. Rdc1 {[%clk 0:00:57.8]} 44...
Rd2 {[%clk 0:00:11.5]} 45. Rc7 {[%clk 0:00:54.3]} 45... Bxd6 {[%clk 0:00:12.3]}
46. exd6 {[%clk 0:00:54.7]} 46... Bb7 {[%clk 0:00:13]} 47. Rxb7 {[%clk
0:00:44.6]} 47... Qxb7 {[%clk 0:00:14.9]} 48. Rd1 {[%clk 0:00:41.2]} 48... f5
{[%clk 0:00:11.7]} 49. Rxd2 {[%clk 0:00:22.3]} 49... fxg4 {[%clk 0:00:12.8]} 50.
d7 {[%clk 0:00:23.5]} 50... Qb4 {[%clk 0:00:09]} 51. d8=Q {[%clk 0:00:20.1]}
51... Qxf4+ {[%clk 0:00:10]} 52. Kg1 {[%clk 0:00:21.1]} 52... Qe3+ {[%clk
0:00:10.8]} 53. Kf1 {[%clk 0:00:22.5]} 53... Qf4+ {[%clk 0:00:10.6]} 54. Ke2
{[%clk 0:00:23.2]} 54... Qe4+ {[%clk 0:00:11.4]} 55. Kf2 {[%clk 0:00:22.1]}
55... Qf4+ {[%clk 0:00:10.1]} 56. Ke1 {[%clk 0:00:23.4]} 56... Qe4+ {[%clk
0:00:11.1]} 57. Re2 {[%clk 0:00:24.2]} 57... Qb1+ {[%clk 0:00:11.5]} 58. Qd1
{[%clk 0:00:25.2]} 58... Qb4+ {[%clk 0:00:12.1]} 59. Qd2 {[%clk 0:00:26.1]}
59... Qxa4 {[%clk 0:00:13.5]} 60. hxg4 {[%clk 0:00:26.3]} 60... Qxg4 {[%clk
0:00:14.1]} 61. Qc3+ {[%clk 0:00:27.4]} 61... Kh6 {[%clk 0:00:14.8]} 62. Qh3+
{[%clk 0:00:28.7]} 62... Qxh3 {[%clk 0:00:16]} 63. gxh3 {[%clk 0:00:30.6]} 1-0

[Event "*** Titled Tuesday Blitz"]
[Site "Chess.com"]
[Date "2018.04.03"]
[Round "6"]
[White "Tramontanaaa"]
[Black "denizozen"]
[Result "0-1"]
[WhiteElo "2384"]
[BlackElo "2638"]
[TimeControl "180+2"]
[EndTime "14:20:37 PDT"]
[Termination "denizozen won by resignation"]

1. e4 {[%clk 0:03:01.9]} 1... e6 {[%clk 0:03:00.7]} 2. d4 {[%clk 0:03:00.8]}
2... d5 {[%clk 0:03:02.6]} 3. e5 {[%clk 0:03:01.9]} 3... c5 {[%clk 0:03:03.6]}
4. c3 {[%clk 0:03:03.2]} 4... Nc6 {[%clk 0:03:05.2]} 5. Be3 {[%clk 0:03:03.3]}
5... Qb6 {[%clk 0:03:06.3]} 6. Qd2 {[%clk 0:03:04.6]} 6... Nh6 {[%clk
0:03:06.1]} 7. Bd3 {[%clk 0:03:03.4]} 7... Bd7 {[%clk 0:03:04.7]} 8. Nf3 {[%clk
0:03:02.8]} 8... Ng4 {[%clk 0:03:03.3]} 9. O-O {[%clk 0:03:00.4]} 9... cxd4
{[%clk 0:03:01.6]} 10. cxd4 {[%clk 0:02:49]} 10... Be7 {[%clk 0:03:02.4]} 11.
Nc3 {[%clk 0:02:48.3]} 11... Nxe3 {[%clk 0:03:01.4]} 12. fxe3 {[%clk 0:02:49]}
12... O-O {[%clk 0:03:01.3]} 13. Kh1 {[%clk 0:02:48.7]} 13... f5 {[%clk
0:03:01.9]} 14. exf6 {[%clk 0:02:47.9]} 14... Bxf6 {[%clk 0:03:02.6]} 15. Rae1
{[%clk 0:02:44.2]} 15... Rad8 {[%clk 0:02:56.1]} 16. Bb1 {[%clk 0:02:43.9]}
16... Be8 {[%clk 0:02:47]} 17. Na4 {[%clk 0:02:39.4]} 17... Qc7 {[%clk
0:02:47.5]} 18. Nc5 {[%clk 0:02:39.7]} 18... Bf7 {[%clk 0:02:47.2]} 19. b4
{[%clk 0:02:33.9]} 19... e5 {[%clk 0:02:41.7]} 20. dxe5 {[%clk 0:02:22.8]} 20...
Nxe5 {[%clk 0:02:40.6]} 21. Nd4 {[%clk 0:02:15.7]} 21... Rfe8 {[%clk 0:02:17.5]}
22. Nf5 {[%clk 0:01:36.7]} 22... Nc4 {[%clk 0:02:08.5]} 23. Qf2 {[%clk 0:01:31]}
23... Bc3 {[%clk 0:01:54]} 24. Rd1 {[%clk 0:01:22.6]} 24... Bg6 {[%clk
0:01:52.4]} 25. a3 {[%clk 0:01:13]} 25... Nxa3 {[%clk 0:01:47.6]} 26. Ba2 {[%clk
0:01:07.7]} 26... Bxb4 {[%clk 0:01:43.3]} 27. Rxd5 {[%clk 0:01:00.8]} 27... Rxd5
{[%clk 0:01:37.5]} 28. Bxd5+ {[%clk 0:01:00.9]} 28... Kh8 {[%clk 0:01:39.1]} 29.
Ne6 {[%clk 0:00:58.3]} 29... Qf7 {[%clk 0:01:21.5]} 30. e4 {[%clk 0:00:34.4]}
30... Rxe6 {[%clk 0:01:11.4]} 31. Qxa7 {[%clk 0:00:31.2]} 31... Bxf5 {[%clk
0:01:07]} 32. Bxe6 {[%clk 0:00:20.7]} 32... Qxe6 {[%clk 0:01:03.3]} 33. exf5
{[%clk 0:00:21.4]} 33... Qc4 {[%clk 0:00:54.1]} 34. Qb8+ {[%clk 0:00:19.1]}
34... Qg8 {[%clk 0:00:54.8]} 35. Qxb7 {[%clk 0:00:16.8]} 35... Bf8 {[%clk
0:00:44.4]} 36. Rc1 {[%clk 0:00:15.3]} 36... Nc4 {[%clk 0:00:41.4]} 37. Qc7
{[%clk 0:00:08.9]} 37... Nd6 {[%clk 0:00:41.4]} 38. Qd7 {[%clk 0:00:07.4]} 38...
Qd5 {[%clk 0:00:35.9]} 39. Rf1 {[%clk 0:00:04]} 39... Kg8 {[%clk 0:00:36]} 40.
Qe6+ {[%clk 0:00:04.6]} 40... Qxe6 {[%clk 0:00:36.6]} 41. fxe6 {[%clk
0:00:06.3]} 41... Be7 {[%clk 0:00:38.2]} 42. Kg1 {[%clk 0:00:06.9]} 42... Bf6
{[%clk 0:00:39.6]} 43. Kf2 {[%clk 0:00:07.5]} 43... Kf8 {[%clk 0:00:40.7]} 44.
Re1 {[%clk 0:00:08.7]} 44... Ke7 {[%clk 0:00:42.6]} 45. Kf3 {[%clk 0:00:09.7]}
45... Nf5 {[%clk 0:00:43.7]} 46. Kf4 {[%clk 0:00:08.7]} 46... Nd4 {[%clk
0:00:44.5]} 47. g4 {[%clk 0:00:09.2]} 47... Nxe6+ {[%clk 0:00:43.2]} 48. Kf5
{[%clk 0:00:10.2]} 48... g6+ {[%clk 0:00:44.6]} 49. Ke4 {[%clk 0:00:11.4]} 49...
Kf7 {[%clk 0:00:44.7]} 50. Kf3 {[%clk 0:00:12.2]} 50... Be7 {[%clk 0:00:45.5]}
51. Kg3 {[%clk 0:00:11.1]} 51... Bd6+ {[%clk 0:00:45.2]} 52. Kg2 {[%clk
0:00:08.7]} 52... Kf6 {[%clk 0:00:46.6]} 53. Rf1+ {[%clk 0:00:09.4]} 53... Kg5
{[%clk 0:00:47.6]} 54. Rf7 {[%clk 0:00:07]} 54... h6 {[%clk 0:00:47.5]} 55. Rd7
{[%clk 0:00:06.9]} 55... Be5 {[%clk 0:00:45.9]} 56. h3 {[%clk 0:00:05.5]} 56...
Nf4+ {[%clk 0:00:46.2]} 57. Kf3 {[%clk 0:00:05.4]} 57... Nxh3 {[%clk 0:00:44.6]}
58. Rd5 {[%clk 0:00:03.8]} 58... Kf6 {[%clk 0:00:45]} 59. Ra5 {[%clk 0:00:04.7]}
59... Ng5+ {[%clk 0:00:46.3]} 60. Kg2 {[%clk 0:00:05.2]} 60... Ne6 {[%clk
0:00:44.8]} 61. Kf3 {[%clk 0:00:04.6]} 61... Bc7 {[%clk 0:00:44.8]} 62. Ra6
{[%clk 0:00:04.9]} 62... Kf7 {[%clk 0:00:45.9]} 63. Ke4 {[%clk 0:00:06.1]} 63...
Bg3 {[%clk 0:00:44.5]} 64. Kd5 {[%clk 0:00:05.7]} 64... Nc7+ {[%clk 0:00:45.7]}
0-1

[Event "*** Titled Tuesday Blitz"]
[Site "Chess.com"]
[Date "2018.04.03"]
[Round "6"]
[White "GM_dmitrij"]
[Black "TregubovP"]
[Result "1-0"]
[WhiteElo "2702"]
[BlackElo "2535"]
[TimeControl "180+2"]
[EndTime "14:20:40 PDT"]
[Termination "GM_dmitrij won by resignation"]

1. e4 {[%clk 0:03:01.9]} 1... c5 {[%clk 0:02:59.2]} 2. Nf3 {[%clk 0:03:03]} 2...
e6 {[%clk 0:03:00.3]} 3. d4 {[%clk 0:03:03.7]} 3... cxd4 {[%clk 0:02:59.4]} 4.
Nxd4 {[%clk 0:03:05.6]} 4... Nc6 {[%clk 0:03:00.4]} 5. Nc3 {[%clk 0:03:06.2]}
5... Nf6 {[%clk 0:03:01.8]} 6. Nxc6 {[%clk 0:03:00.7]} 6... bxc6 {[%clk
0:03:01]} 7. e5 {[%clk 0:03:01.9]} 7... Nd5 {[%clk 0:03:01.7]} 8. Ne4 {[%clk
0:03:03.4]} 8... Qc7 {[%clk 0:03:03]} 9. f4 {[%clk 0:03:01.5]} 9... Qb6 {[%clk
0:03:04.5]} 10. c4 {[%clk 0:02:59.4]} 10... Bb4+ {[%clk 0:03:05]} 11. Ke2 {[%clk
0:02:59.9]} 11... f5 {[%clk 0:03:02.5]} 12. exf6 {[%clk 0:02:58]} 12... Nxf6
{[%clk 0:03:01.4]} 13. Be3 {[%clk 0:02:44.5]} 13... Qd8 {[%clk 0:03:01.8]} 14.
Nd6+ {[%clk 0:02:40.6]} 14... Bxd6 {[%clk 0:03:02.4]} 15. Qxd6 {[%clk
0:02:42.5]} 15... Bb7 {[%clk 0:03:03.5]} 16. c5 {[%clk 0:02:35]} 16... Ba6+
{[%clk 0:02:57.7]} 17. Ke1 {[%clk 0:02:34.8]} 17... Bxf1 {[%clk 0:02:50.6]} 18.
Kxf1 {[%clk 0:02:36.7]} 18... Qb8 {[%clk 0:02:46]} 19. Qd2 {[%clk 0:02:24.3]}
19... Qb5+ {[%clk 0:02:40.1]} 20. Kg1 {[%clk 0:02:17.3]} 20... O-O {[%clk
0:02:38.2]} 21. g3 {[%clk 0:02:02.5]} 21... Rab8 {[%clk 0:02:22.9]} 22. Bd4
{[%clk 0:02:03.4]} 22... Qb4 {[%clk 0:02:21.1]} 23. Qxb4 {[%clk 0:01:57.4]}
23... Rxb4 {[%clk 0:02:21.6]} 24. Rd1 {[%clk 0:01:59.3]} 24... Rc4 {[%clk
0:02:12.2]} 25. Kg2 {[%clk 0:01:44.1]} 25... Rc2+ {[%clk 0:01:59.2]} 26. Kf3
{[%clk 0:01:44.6]} 26... Nd5 {[%clk 0:01:37.4]} 27. Rc1 {[%clk 0:01:44.6]} 27...
Rd2 {[%clk 0:01:29.6]} 28. Rcd1 {[%clk 0:01:45.6]} 28... Rc2 {[%clk 0:01:30.3]}
29. Rc1 {[%clk 0:01:46.7]} 29... Rd2 {[%clk 0:01:29.9]} 30. Rcd1 {[%clk
0:01:47.9]} 30... Rc2 {[%clk 0:01:28.7]} 31. h4 {[%clk 0:01:48.6]} 31... Rb8
{[%clk 0:01:25.3]} 32. Rc1 {[%clk 0:01:41.2]} 32... Rd2 {[%clk 0:01:24.4]} 33.
Rhd1 {[%clk 0:01:42.2]} 33... Rh2 {[%clk 0:01:23.9]} 34. Rd3 {[%clk 0:01:29]}
34... Rb4 {[%clk 0:01:19.7]} 35. a3 {[%clk 0:01:28.2]} 35... Rb5 {[%clk
0:01:12.5]} 36. Rc4 {[%clk 0:01:17.3]} 36... h5 {[%clk 0:01:06.7]} 37. a4 {[%clk
0:01:04.4]} 37... Rb8 {[%clk 0:01:05.2]} 38. b3 {[%clk 0:01:01.7]} 38... Kf7
{[%clk 0:01:04.7]} 39. Bf2 {[%clk 0:00:58.1]} 39... Rh1 {[%clk 0:01:02.5]} 40.
b4 {[%clk 0:00:35.7]} 40... Rxb4 {[%clk 0:00:49]} 41. Rxb4 {[%clk 0:00:36.5]}
41... Nxb4 {[%clk 0:00:49.7]} 42. Rxd7+ {[%clk 0:00:38]} 42... Ke8 {[%clk
0:00:41.5]} 43. Rxg7 {[%clk 0:00:36.9]} 43... a5 {[%clk 0:00:39.7]} 44. Ra7
{[%clk 0:00:34.3]} 44... Nd3 {[%clk 0:00:34.1]} 45. Bd4 {[%clk 0:00:33.8]} 45...
Rc1 {[%clk 0:00:30.3]} 46. Rxa5 {[%clk 0:00:31.9]} 46... Rc4 {[%clk 0:00:28.4]}
47. Ke4 {[%clk 0:00:25.9]} 47... Nf2+ {[%clk 0:00:24.8]} 48. Ke5 {[%clk
0:00:26.9]} 48... Ng4+ {[%clk 0:00:25.6]} 49. Kxe6 {[%clk 0:00:25.1]} 49... Rxd4
{[%clk 0:00:26.7]} 50. Ra8+ {[%clk 0:00:26.1]} 50... Rd8 {[%clk 0:00:28.3]} 51.
Rxd8+ {[%clk 0:00:27.5]} 51... Kxd8 {[%clk 0:00:29.3]} 52. f5 {[%clk 0:00:27.3]}
52... Ne3 {[%clk 0:00:21]} 53. f6 {[%clk 0:00:26.3]} 53... Ke8 {[%clk
0:00:22.1]} 54. a5 {[%clk 0:00:24.5]} 54... Nd5 {[%clk 0:00:22.2]} 55. Kd6
{[%clk 0:00:26]} 55... Nb4 {[%clk 0:00:21.4]} 56. Ke6 {[%clk 0:00:26.5]} 56...
Kf8 {[%clk 0:00:22.3]} 57. Kf5 {[%clk 0:00:24.2]} 57... Kf7 {[%clk 0:00:22.2]}
58. Kg5 {[%clk 0:00:25.5]} 58... Na6 {[%clk 0:00:23.5]} 59. Kxh5 {[%clk
0:00:25.8]} 59... Kxf6 {[%clk 0:00:24.6]} 60. Kh6 {[%clk 0:00:20.9]} 60... Nxc5
{[%clk 0:00:25.2]} 61. g4 {[%clk 0:00:22.5]} 61... Kf7 {[%clk 0:00:26.7]} 62.
Kh7 {[%clk 0:00:22.2]} 62... Nd7 {[%clk 0:00:25.1]} 63. a6 {[%clk 0:00:21.3]}
63... c5 {[%clk 0:00:26]} 64. a7 {[%clk 0:00:22.6]} 64... Nb6 {[%clk 0:00:27]}
65. g5 {[%clk 0:00:24.1]} 65... c4 {[%clk 0:00:28.4]} 66. g6+ {[%clk 0:00:26]}
66... Kf6 {[%clk 0:00:26.3]} 67. g7 {[%clk 0:00:27.9]} 67... c3 {[%clk
0:00:26.5]} 68. g8=Q {[%clk 0:00:29.1]} 1-0

[Event "*** Titled Tuesday Blitz"]
[Site "Chess.com"]
[Date "2018.04.03"]
[Round "6"]
[White "kjzsdu"]
[Black "pulvettd"]
[Result "1/2-1/2"]
[WhiteElo "2447"]
[BlackElo "2439"]
[TimeControl "180+2"]
[EndTime "14:20:50 PDT"]
[Termination "Game drawn by repetition"]

1. e4 {[%clk 0:03:01.8]} 1... c5 {[%clk 0:03:00.2]} 2. Nf3 {[%clk 0:03:01.6]}
2... d6 {[%clk 0:03:00.3]} 3. d4 {[%clk 0:03:02.6]} 3... cxd4 {[%clk 0:03:01.4]}
4. Nxd4 {[%clk 0:03:04.4]} 4... Nf6 {[%clk 0:03:02.3]} 5. Bd3 {[%clk 0:03:02.9]}
5... Nc6 {[%clk 0:02:58.4]} 6. Nb3 {[%clk 0:03:02.3]} 6... g6 {[%clk 0:02:57.8]}
7. O-O {[%clk 0:02:59.9]} 7... Bg7 {[%clk 0:02:57.7]} 8. Kh1 {[%clk 0:03:01.1]}
8... O-O {[%clk 0:02:59.3]} 9. f4 {[%clk 0:03:01.6]} 9... a5 {[%clk 0:02:55.6]}
10. a4 {[%clk 0:02:58.5]} 10... Bg4 {[%clk 0:02:52.1]} 11. Qe1 {[%clk
0:02:57.6]} 11... Be6 {[%clk 0:02:54]} 12. N1d2 {[%clk 0:02:47.7]} 12... Rc8
{[%clk 0:02:47.3]} 13. c3 {[%clk 0:02:35.4]} 13... Bxb3 {[%clk 0:02:44.5]} 14.
Nxb3 {[%clk 0:02:36]} 14... Qb6 {[%clk 0:02:45.1]} 15. Ra3 {[%clk 0:02:30.5]}
15... Nd7 {[%clk 0:02:35.1]} 16. Bb5 {[%clk 0:02:21.4]} 16... Qc7 {[%clk
0:02:27.9]} 17. Be3 {[%clk 0:02:18.1]} 17... b6 {[%clk 0:02:21.6]} 18. Nd2
{[%clk 0:01:58.7]} 18... Rb8 {[%clk 0:02:13.8]} 19. Bg1 {[%clk 0:01:54.9]} 19...
Na7 {[%clk 0:02:05.4]} 20. Bd3 {[%clk 0:01:47.9]} 20... Nc5 {[%clk 0:02:01]} 21.
Bc2 {[%clk 0:01:43.2]} 21... Rfc8 {[%clk 0:01:58.3]} 22. f5 {[%clk 0:01:34.8]}
22... Nc6 {[%clk 0:01:19.9]} 23. fxg6 {[%clk 0:01:19.4]} 23... hxg6 {[%clk
0:01:21.8]} 24. Qf2 {[%clk 0:01:10.5]} 24... e6 {[%clk 0:01:21.8]} 25. Qh4
{[%clk 0:01:02.6]} 25... Ne5 {[%clk 0:01:20.4]} 26. c4 {[%clk 0:01:01.8]} 26...
Qd8 {[%clk 0:01:19.7]} 27. Qe1 {[%clk 0:00:52.5]} 27... Ncd7 {[%clk 0:01:15.8]}
28. Qe2 {[%clk 0:00:42.1]} 28... Qc7 {[%clk 0:01:13.1]} 29. b3 {[%clk
0:00:29.8]} 29... Nc5 {[%clk 0:01:11.7]} 30. Nf3 {[%clk 0:00:28.4]} 30... Nc6
{[%clk 0:01:09.7]} 31. Ng5 {[%clk 0:00:25.7]} 31... Rf8 {[%clk 0:01:08.5]} 32.
Qg4 {[%clk 0:00:26.1]} 32... f6 {[%clk 0:00:57.7]} 33. Nxe6 {[%clk 0:00:21.7]}
33... Qd7 {[%clk 0:00:58.1]} 34. Bxc5 {[%clk 0:00:22.7]} 34... bxc5 {[%clk
0:00:54.7]} 35. Qh3 {[%clk 0:00:19.2]} 35... Rfe8 {[%clk 0:00:50.7]} 36. Nf4
{[%clk 0:00:18.4]} 36... Qxh3 {[%clk 0:00:49.5]} 37. Nxh3 {[%clk 0:00:20.1]}
37... Nd4 {[%clk 0:00:48.1]} 38. Bd1 {[%clk 0:00:14.2]} 38... Rxe4 {[%clk
0:00:47.4]} 39. Nf4 {[%clk 0:00:15.5]} 39... Kf7 {[%clk 0:00:45.3]} 40. Nd5
{[%clk 0:00:15.8]} 40... Rbe8 {[%clk 0:00:43]} 41. Kg1 {[%clk 0:00:16.6]} 41...
f5 {[%clk 0:00:38.5]} 42. Ra2 {[%clk 0:00:17.3]} 42... Re1 {[%clk 0:00:36.9]}
43. g3 {[%clk 0:00:16.4]} 43... Bh6 {[%clk 0:00:32.8]} 44. Kg2 {[%clk 0:00:16]}
44... R8e5 {[%clk 0:00:29.8]} 45. Raf2 {[%clk 0:00:14.7]} 45... Rxf1 {[%clk
0:00:29.8]} 46. Kxf1 {[%clk 0:00:15.7]} 46... Be3 {[%clk 0:00:27.5]} 47. Rb2
{[%clk 0:00:16.2]} 47... g5 {[%clk 0:00:27]} 48. Kg2 {[%clk 0:00:15.4]} 48... f4
{[%clk 0:00:25.7]} 49. Bh5+ {[%clk 0:00:15.9]} 49... Kg7 {[%clk 0:00:24.2]} 50.
gxf4 {[%clk 0:00:16.5]} 50... gxf4 {[%clk 0:00:26.1]} 51. Bg4 {[%clk 0:00:17.8]}
51... Rg5 {[%clk 0:00:25.2]} 52. h3 {[%clk 0:00:19]} 52... f3+ {[%clk
0:00:25.7]} 53. Kf1 {[%clk 0:00:20]} 53... Bc1 {[%clk 0:00:20.4]} 54. Rb1 {[%clk
0:00:21.2]} 54... Ba3 {[%clk 0:00:21]} 55. Re1 {[%clk 0:00:21.3]} 55... Re5
{[%clk 0:00:20]} 56. Re3 {[%clk 0:00:15.2]} 56... Bc1 {[%clk 0:00:18.1]} 57. Rc3
{[%clk 0:00:14.5]} 57... Bd2 {[%clk 0:00:17.2]} 58. Rd3 {[%clk 0:00:15.6]} 58...
Re1+ {[%clk 0:00:17]} 59. Kf2 {[%clk 0:00:16.5]} 59... Re2+ {[%clk 0:00:18.9]}
60. Kf1 {[%clk 0:00:17.3]} 60... Re1+ {[%clk 0:00:17.1]} 61. Kf2 {[%clk
0:00:18.3]} 61... Re2+ {[%clk 0:00:16]} 62. Kf1 {[%clk 0:00:18.3]} 62... Re1+
{[%clk 0:00:12.5]} 63. Kf2 {[%clk 0:00:19.5]} 1/2-1/2